bitfinex/quotes_ETHUSD_20240601
["timestamp","ask_amount","ask_price","bid_price","bid_amount"]
[1717215501154,5.64906,3775.0,3774.9,0.639]
[1717215501454,6.22189748,3775.0,3774.9,0.639]
[1717215503873,6.22189748,3775.0,3774.7,2.485]
[1717215504075,0.57283748,3774.9,3774.7,2.485]
[1717215504321,0.57283748,3774.9,3774.8,0.639]
[1717215504906,0.57283748,3774.9,3774.0,2.5]
[1717215504907,2.64915,3774.8,3774.4,2.4155]
[1717215505113,3.0,3774.7,3774.4,2.4155]
[1717215505294,3.0,3774.7,3774.6,0.639]
[1717215505622,3.57287791,3774.7,3774.6,0.639]
[1717215506029,2.64936,3774.5,3774.0,2.5]
[1717215506343,2.64936,3774.5,3774.4,0.639]
[1717215506485,6.22228222,3774.5,3774.4,0.639]
[1717215507193,6.22230106,3774.5,3774.4,0.639]
[1717215507983,6.22230106,3774.5,3774.0,2.5]
[1717215508185,5.64936,3774.5,3774.4,0.639]
[1717215508437,6.22231497,3774.5,3774.4,0.639]
[1717215512412,5.64936,3774.5,3774.4,0.639]
[1717215513216,6.22231278,3774.5,3774.4,0.639]
[1717215513423,5.64936,3774.5,3774.4,0.639]
[1717215514786,6.22231453,3774.5,3774.4,0.639]
[1717215514996,6.53785023,3774.5,3774.4,0.639]
[1717215517089,6.53785023,3774.5,3773.6,2.4155]
[1717215517294,2.64959,3774.2,3773.6,2.4155]
[1717215517608,3.0,3774.1,3773.5,2.5]
[1717215517775,3.0,3774.1,3774.0,0.639]
[1717215527144,2.64891,3775.2,3774.1,2.3327]
[1717215527471,2.64904,3775.0,3774.2,0.29717]
[1717215527610,2.64904,3775.0,3774.9,0.639]
[1717215527815,3.22193079,3775.0,3774.9,0.639]
[1717215529206,6.22193079,3775.0,3774.9,0.639]
[1717215530958,2.64943,3774.4,3773.7,7.43]
[1717215531168,2.64943,3774.4,3774.3,0.639]
[1717215533430,2.64943,3774.4,3773.8,2.3327]
[1717215533652,2.64943,3774.4,3774.3,0.639]
[1717215534320,3.22236683,3774.4,3774.3,0.639]
[1717215536918,2.64943,3774.4,3774.3,0.639]
[1717215542444,3.2223743,3774.4,3774.3,0.639]
[1717215543459,2.64973,3774.0,3773.5,4.9827]
[1717215543662,2.64973,3774.0,3773.9,0.639]
[1717215544595,2.64973,3774.0,3773.5,2.5]
[1717215544919,2.64973,3774.0,3773.9,0.639]
[1717215545456,2.64973,3774.0,3773.5,2.5]
[1717215545689,2.64973,3774.0,3773.9,0.639]
[1717215546051,2.64973,3774.0,3773.5,2.5]
[1717215546252,2.64973,3774.0,3773.9,0.639]
[1717215548079,23.42615188,3774.0,3773.5,2.5]
[1717215548287,8.295703,3774.0,3773.9,0.639]
[1717215548531,24.67677407,3774.0,3773.9,0.639]
[1717215548698,25.53677407,3774.0,3773.9,0.639]
[1717215549229,25.5367775,3774.0,3773.9,0.639]
[1717215550021,8.8687335,3774.0,3773.9,0.639]
[1717215550232,29.7861975,3774.0,3773.9,0.639]
[1717215550784,24.9386705,3774.0,3773.9,0.639]
[1717215554335,24.6736975,3774.0,3773.9,0.639]
[1717215561022,24.67370218,3774.0,3773.9,0.639]
[1717215563249,2.64986,3773.8,3773.5,2.5]
[1717215563555,5.13838,3773.6,3773.5,2.5]
[1717215563711,42.22014663,3773.6,3773.5,2.5]
[1717215563918,42.79318181,3773.6,3773.5,2.5]
[1717215564955,41.83806481,3773.6,3773.5,2.5]
[1717215566757,40.28109881,3773.6,3773.5,2.5]
[1717215566967,40.28109881,3773.6,3773.5,3.139]
[1717215567270,39.01985681,3773.6,3773.5,3.139]
[1717215567618,38.46985681,3773.6,3773.5,3.139]
[1717215567826,8.78781418,3773.6,3773.5,3.139]
[1717215570004,8.78781418,3773.6,3773.5,0.639]
[1717215570218,9.65309218,3773.6,3773.5,0.639]
[1717215570507,6.22301518,3773.6,3773.5,0.639]
[1717215570799,7.80939199,3773.6,3773.5,0.639]
[1717215571099,5.64998,3773.6,3773.5,0.639]
[1717215572308,5.64998,3773.6,3773.5,0.89065381]
[1717215574559,1.58644414,3773.9,3773.5,0.89065381]
[1717215574759,3.0,3774.0,3773.8,0.639]
[1717215575005,4.23611414,3774.1,3773.9,0.639]
[1717215575006,2.64967,3774.1,3773.9,0.639]
[1717215575599,2.64967,3774.1,3774.0,2.3131]
[1717215575912,7.43,3774.7,3774.0,2.60831]
[1717215575913,1.58724522,3774.3,3774.0,2.60831]
[1717215576203,1.58724522,3774.4,3774.2,0.639]
[1717215576352,1.58724522,3774.4,3774.3,0.639]
[1717215576553,2.16023278,3774.4,3774.3,0.639]
[1717215576770,1.5872804,3774.4,3774.3,0.639]
[1717215577183,5.16023278,3774.5,3774.3,0.639]
[1717215577521,0.57295238,3774.4,3774.3,0.639]
[1717215578782,4.5872804,3774.5,3774.3,0.639]
[1717215580077,3.0,3774.5,3774.3,0.639]
[1717215580374,3.0,3774.5,3774.3,0.963731]
[1717215581775,1.5872804,3774.7,3774.3,0.963731]
[1717215581976,1.58746544,3774.9,3774.6,0.639]
[1717215582249,1.58746544,3775.1,3774.8,0.639]
[1717215582367,1.58746544,3775.1,3775.0,0.639]
[1717215582772,2.16034303,3775.2,3775.0,0.639]
[1717215584323,2.64886,3775.2,3775.0,0.639]
[1717215584477,3.0,3775.1,3775.0,0.639]
[1717215591724,3.0,3775.1,3774.2,2.2853]
[1717215591725,2.64904,3775.0,3774.2,2.2853]
[1717215591880,2.64904,3775.0,3774.9,0.639]
[1717215592192,11.141948,3775.0,3774.9,0.639]
[1717215596211,11.7148442,3775.0,3774.9,0.639]
[1717215597329,14.1798442,3775.0,3774.9,0.639]
[1717215598312,14.45668351,3775.0,3774.9,0.639]
[1717215599950,11.99168351,3775.0,3774.9,0.639]
[1717215601836,11.99168759,3775.0,3774.9,0.639]
[1717215603140,11.41878731,3775.0,3774.9,0.639]
[1717215603357,11.99169258,3775.0,3774.9,0.639]
[1717215607663,2.64962,3774.2,3773.8,2.475]
[1717215607868,4.236668,3774.2,3774.1,0.639]
[1717215608071,3.22252527,3774.2,3774.1,0.639]
[1717215610256,4.80936396,3774.2,3774.1,0.639]
[1717215611041,3.22252527,3774.2,3774.1,0.639]
[1717215611274,4.80929571,3774.2,3774.1,0.639]
[1717215611571,4.80932842,3774.2,3774.1,0.639]
[1717215612258,2.64962,3774.2,3774.1,0.639]
[1717215612430,2.64962,3774.2,3774.1,0.9504]
[1717215612631,2.64962,3774.2,3774.1,3.4254]
[1717215613623,3.22256344,3774.2,3774.1,3.4254]
[1717215613839,2.64962,3774.2,3774.1,3.4254]
[1717215614275,1.58675541,3774.3,3774.1,3.4254]
[1717215614471,1.58675541,3774.4,3774.2,0.34254]
[1717215614771,1.58675541,3774.4,3774.3,0.639]
[1717215615070,0.57293678,3774.5,3774.3,0.639]
[1717215615769,1.58675476,3774.4,3774.3,0.639]
[1717215618254,0.57293678,3774.5,3774.3,0.639]
[1717215618444,1.5865646,3774.4,3774.3,0.639]
[1717215618660,3.0,3774.6,3774.3,0.639]
[1717215618975,1.58651571,3774.4,3774.2,0.34254]
[1717215619145,1.58651571,3774.4,3774.3,0.920754]
[1717215619479,0.57293398,3774.4,3774.3,0.920754]
[1717215619770,0.57293398,3774.5,3774.3,0.920754]
[1717215619980,0.57293398,3774.5,3774.4,0.639]
[1717215620562,0.57293398,3774.5,3774.1,2.475]
[1717215620748,1.58649087,3774.3,3774.1,2.475]
[1717215620953,1.58649087,3774.3,3774.2,0.639]
[1717215623261,0.57293398,3774.3,3774.2,0.639]
[1717215623467,0.57293398,3774.5,3774.2,0.639]
[1717215623804,0.57293398,3774.5,3774.4,0.639]
[1717215630821,0.57293849,3774.5,3774.4,0.639]
[1717215641328,0.57293283,3774.5,3774.4,0.639]
[1717215645025,4.95886,3774.4,3773.6,2.3404]
[1717215645225,1.58615072,3774.1,3773.6,2.3404]
[1717215645426,1.58615072,3774.1,3774.0,0.639]
[1717215646571,0.57293283,3774.1,3774.0,0.639]
[1717215646870,0.57293283,3774.2,3774.0,0.639]
[1717215647083,0.57293283,3774.2,3774.1,0.639]
[1717215648625,0.57296113,3774.2,3774.1,0.639]
[1717215654179,2.64973,3774.0,3773.4,2.3404]
[1717215654518,2.64973,3774.0,3773.9,0.639]
[1717215654694,3.22269877,3774.0,3773.9,0.639]
[1717215657170,2.64973,3774.0,3773.9,0.639]
[1717215662622,3.22270804,3774.0,3773.9,0.639]
[1717215663287,3.22271019,3774.0,3773.9,0.639]
[1717215665198,6.22271019,3774.0,3773.9,0.639]
[1717215666115,8.58691019,3774.0,3773.9,0.639]
[1717215671430,8.58694797,3774.0,3773.9,0.639]
[1717215672031,8.58694797,3774.0,3773.3,1.87753812]
[1717215672194,2.6499,3773.8,3773.3,2.30758193]
[1717215672540,2.6499,3773.8,3773.7,0.639]
[1717215672748,6.22292406,3773.8,3773.7,0.639]
[1717215674040,6.22292406,3773.8,3773.3,2.30758193]
[1717215674242,3.57302406,3773.7,3773.3,2.30758193]
[1717215674443,3.0,3773.7,3773.6,0.639]
[1717215674659,3.57302665,3773.7,3773.6,0.639]
[1717215675760,2.65,3773.6,3773.3,1.87753812]
[1717215676060,2.65,3773.6,3773.5,0.639]
[1717215676374,3.22303862,3773.6,3773.5,0.639]
[1717215676669,2.65,3773.6,3773.5,0.639]
[1717215677161,3.22303374,3773.6,3773.5,0.639]
[1717215677515,2.65,3773.6,3773.5,0.639]
[1717215678162,3.2230379,3773.6,3773.5,0.639]
[1717215678558,2.65,3773.6,3773.5,0.639]
[1717215685544,3.22303512,3773.6,3773.5,0.639]
[1717215686130,3.22303517,3773.6,3773.5,0.639]
[1717215687682,3.22303393,3773.6,3773.5,0.639]
[1717215688932,2.65,3773.6,3773.5,0.639]
[1717215689131,3.22303217,3773.6,3773.5,0.639]
[1717215690162,2.65,3773.6,3773.5,0.639]
[1717215690754,3.22303207,3773.6,3773.5,0.639]
[1717215692296,2.65,3773.6,3773.5,0.639]
[1717215692471,3.22303202,3773.6,3773.5,0.639]
[1717215702184,3.22305956,3773.6,3773.5,0.639]
[1717215702696,3.22305956,3773.6,3773.3,1.87753812]
[1717215702995,2.65,3773.6,3773.5,0.639]
[1717215703195,3.2230593,3773.6,3773.5,0.639]
[1717215704196,3.22305832,3773.6,3773.5,0.639]
[1717215704565,6.544049,3773.6,3773.3,1.87753812]
[1717215704765,5.97099068,3773.6,3773.5,0.639]
[1717215705000,6.54408543,3773.6,3773.5,0.639]
[1717215705384,8.79608543,3773.6,3773.5,0.639]
[1717215711592,21.64347943,3773.6,3773.5,0.639]
[1717215711893,21.80307743,3773.6,3773.5,0.639]
[1717215712619,19.48885343,3773.6,3773.5,0.639]
[1717215716918,16.24472243,3773.6,3773.5,0.639]
[1717215717571,14.91610043,3773.6,3773.5,0.639]
[1717215718320,17.16810043,3773.6,3773.5,0.639]
[1717215718681,17.16812694,3773.6,3773.5,0.639]
[1717215718879,16.86812694,3773.6,3773.5,0.639]
[1717215722025,16.86812889,3773.6,3773.5,0.639]
[1717215724523,12.40166889,3773.6,3773.5,0.639]
[1717215724824,11.61520168,3773.6,3773.5,0.639]
[1717215724980,12.18832514,3773.6,3773.5,0.639]
[1717215725176,11.65832514,3773.6,3773.5,0.639]
[1717215725922,8.73206346,3773.6,3773.5,0.639]
[1717215726085,6.22312346,3773.6,3773.5,0.639]
[1717215730282,6.22309682,3773.6,3773.5,0.639]
[1717215736717,5.65,3773.6,3773.5,0.639]
[1717215736927,6.22310273,3773.6,3773.5,0.639]
[1717215738944,6.22310269,3773.6,3773.5,0.639]
[1717215746075,6.22310288,3773.6,3773.5,0.639]
[1717215750673,6.22310045,3773.6,3773.5,0.639]
[1717215755887,3.57310045,3773.6,3773.5,0.639]
[1717215756101,3.57310045,3773.6,3773.5,1.13764381]
[1717215756976,0.57310045,3773.6,3773.5,1.13764381]
[1717215757206,0.57310045,3773.9,3773.5,1.13764381]
[1717215757477,0.57310045,3773.9,3773.8,0.639]
[1717215758414,0.57310045,3773.9,3773.8,3.1089]
[1717215758567,0.57310045,3773.9,3773.8,3.46965438]
[1717215758967,0.57300982,3773.9,3773.8,3.46965438]
[1717215760296,3.0,3774.0,3773.8,3.46965438]
[1717215766327,3.0,3774.5,3773.8,3.46965438]
[1717215766623,0.57297133,3774.4,3773.8,2.83065438]
[1717215766835,0.57297133,3774.4,3774.3,0.639]
[1717215769239,3.0,3774.5,3774.3,0.639]
[1717215776691,3.0,3775.0,3774.3,0.639]
[1717215776897,0.57292352,3774.9,3774.2,2.4419]
[1717215777150,3.0,3775.1,3774.8,0.639]
[1717215777151,0.57292352,3775.0,3774.8,0.639]
[1717215777351,3.22192352,3775.0,3774.9,0.639]
[1717215777492,6.22192352,3775.0,3774.9,0.639]
[1717215779246,6.2206858,3775.0,3774.9,0.639]
[1717215781313,17.2897818,3775.0,3774.9,0.639]
[1717215781507,18.4480858,3775.0,3774.9,0.639]
[1717215782413,17.8764,3775.0,3774.9,0.639]
[1717215783045,2.64935,3774.6,3774.0,2.3777]
[1717215783231,3.0,3774.5,3774.0,2.3777]
[1717215783438,3.0,3774.5,3774.4,0.639]
[1717215784131,3.0,3774.5,3774.4,3.0167]
[1717215787070,2.64935,3774.6,3774.4,3.0167]
[1717215787400,2.64935,3774.6,3774.5,0.30167]
[1717215787541,5.64935,3774.6,3774.5,0.30167]
[1717215788447,3.0,3774.6,3774.5,0.30167]
[1717215788745,3.0,3775.0,3774.5,0.30167]
[1717215788865,3.0,3775.0,3774.9,0.639]
[1717215789284,3.57287769,3775.0,3774.9,0.639]
[1717215790867,3.57287769,3775.0,3774.9,3.0167]
[1717215791068,2.64863,3775.6,3774.9,3.0167]
[1717215791267,2.64863,3775.6,3775.5,0.639]
[1717215792443,5.64863,3775.6,3775.5,0.639]
[1717215798608,5.64863,3775.6,3775.4,2.3777]
[1717215798814,3.0,3775.5,3775.4,2.3777]
[1717215799108,3.0,3775.5,3775.4,3.0167]
[1717215799357,3.0,3775.5,3775.4,3.31837]
[1717215813756,2.64829,3776.1,3775.4,0.94067]
[1717215813952,3.0,3776.0,3775.4,0.30167]
[1717215814152,3.0,3776.0,3775.9,0.639]
[1717215814334,3.57274058,3776.0,3775.9,0.639]
[1717215814764,3.57274058,3776.0,3775.4,0.30167]
[1717215814971,3.0,3776.0,3775.9,0.639]
[1717215815282,3.57274123,3776.0,3775.9,0.639]
[1717215815986,3.57274035,3776.0,3775.9,0.639]
[1717215823044,3.57270455,3776.0,3775.9,0.639]
[1717215825291,3.0,3776.0,3775.9,0.639]
[1717215825617,2.64829,3776.1,3775.9,0.639]
[1717215825793,3.0,3776.4,3775.9,0.639]
[1717215825794,3.0,3776.4,3775.9,2.913]
[1717215825965,0.57265569,3776.3,3776.0,0.2913]
[1717215826160,0.57265569,3776.4,3776.2,0.639]
[1717215826379,0.57265569,3776.4,3776.3,0.639]
[1717215827193,3.0,3776.5,3776.3,0.639]
[1717215837894,3.0,3776.5,3776.3,2.913]
[1717215838091,3.0,3776.5,3776.4,0.2913]
[1717215840210,3.0,3776.5,3776.3,0.639]
[1717215850253,3.0,3776.5,3776.3,3.085]
[1717215852073,2.4822,3777.0,3776.3,3.085]
[1717215852227,0.57259771,3776.9,3776.3,2.446]
[1717215852430,0.57259771,3776.9,3776.8,0.639]
[1717215852631,2.64767,3776.9,3776.8,0.639]
[1717215852829,6.22026771,3776.9,3776.8,0.639]
[1717215853133,6.2202537,3776.9,3776.8,0.639]
[1717215854511,6.2202537,3776.9,3776.4,0.2446]
[1717215854712,2.64788,3776.6,3776.5,0.26906]
[1717215854955,3.2204637,3776.6,3776.5,0.639]
[1717215855155,6.2204637,3776.6,3776.5,0.639]
[1717215856128,2.64818,3776.2,3775.8,7.43]
[1717215856328,2.64835,3776.0,3775.1,2.446]
[1717215856543,0.57263693,3775.9,3775.2,0.509503]
[1717215856741,0.57263693,3775.9,3775.8,0.639]
[1717215857320,3.57263693,3775.9,3775.8,0.639]
[1717215859730,3.0,3775.9,3775.8,0.639]
[1717215863129,3.0,3775.9,3775.2,0.509503]
[1717215863336,3.0,3775.9,3775.8,0.639]
[1717215868842,3.0,3775.9,3774.4,5.43739]
[1717215868843,2.64891,3775.2,3774.4,7.43]
[1717215869043,2.64891,3775.2,3775.1,0.639]
[1717215872956,5.64856,3775.7,3775.1,0.639]
[1717215873141,5.64856,3775.7,3775.6,0.639]
[1717215885344,6.22131657,3775.7,3775.6,0.639]
[1717215886577,6.22131657,3775.7,3775.6,0.93521]
[1717215886776,5.64856,3775.7,3775.6,0.93521]
[1717215887554,3.0,3775.7,3775.6,0.93521]
[1717215887758,3.0,3776.1,3775.6,0.93521]
[1717215888087,0.57271547,3776.0,3775.6,0.29621]
[1717215888258,0.57271547,3776.0,3775.9,0.639]
[1717215889256,0.57271603,3776.0,3775.9,0.639]
[1717215892564,3.0,3776.1,3775.9,0.639]
[1717215893100,0.57270773,3776.0,3775.9,0.639]
[1717215894313,3.0,3776.1,3775.9,0.639]
[1717215901141,3.0,3776.1,3776.0,0.639]
[1717215901364,3.57269888,3776.1,3776.0,0.639]
[1717215903007,5.91309888,3776.1,3776.0,0.639]
[1717215904644,3.57269888,3776.1,3776.0,0.639]
[1717215928779,3.57270684,3776.1,3776.0,0.639]
[1717215933682,3.57270684,3776.1,3775.3,2.4918]
[1717215933887,3.22104684,3776.0,3775.4,0.2756687]
[1717215934094,3.57270684,3775.9,3775.4,0.2756687]
[1717215934251,3.57270684,3775.9,3775.8,0.639]
[1717215941464,3.57271027,3775.9,3775.8,0.639]
[1717215949523,3.57271454,3775.9,3775.8,0.639]
[1717215955429,3.0,3775.9,3775.8,0.639]
[1717215955736,3.57271309,3775.9,3775.8,0.639]
[1717215962173,3.0,3775.9,3775.8,0.639]
[1717215962325,3.57271811,3775.9,3775.8,0.639]
[1717215963133,3.57271748,3775.9,3775.8,0.639]
[1717215965765,0.57271748,3775.9,3775.8,3.0492]
[1717215965945,2.4899,3776.6,3775.8,3.35412]
[1717215965946,2.64815,3776.3,3775.8,3.35412]
[1717215966152,3.57271748,3776.2,3775.8,2.4102]
[1717215966477,3.0,3776.2,3776.1,0.639]
[1717215966681,3.57267417,3776.2,3776.1,0.639]
[1717215968448,2.64832,3776.0,3775.4,2.6858687]
[1717215968669,2.64832,3776.0,3775.9,0.639]
[1717215968832,3.22100282,3776.0,3775.9,0.639]
[1717215969034,2.64832,3776.0,3775.9,0.639]
[1717215969549,3.22100648,3776.0,3775.9,0.639]
[1717215971491,2.64832,3776.0,3775.9,0.639]
[1717215973286,3.22100929,3776.0,3775.9,0.639]
[1717215975044,6.22100929,3776.0,3775.9,0.639]
[1717215980752,5.64832,3776.0,3775.9,0.639]
[1717215982468,2.64832,3776.0,3775.9,0.639]
[1717215982755,5.64832,3776.0,3775.9,0.639]
[1717215985485,6.22101051,3776.0,3775.9,0.639]
[1717215985684,5.64832,3776.0,3775.9,0.639]
[1717215985915,2.64832,3776.0,3775.9,0.639]
[1717215986126,5.64832,3776.0,3775.9,0.639]
[1717215990394,6.22100957,3776.0,3775.9,0.639]
[1717215992234,6.22100957,3776.0,3775.5,2.75128687]
[1717215992442,5.64832,3776.0,3775.9,0.639]
[1717215992903,6.22101043,3776.0,3775.9,0.639]
[1717215998034,3.22101043,3776.0,3775.9,0.639]
[1717216000748,3.2210108,3776.0,3775.9,0.639]
[1717216003034,3.2210108,3776.0,3775.5,2.4827]
[1717216003205,2.64832,3776.0,3775.9,0.639]
[1717216003604,3.2210107,3776.0,3775.9,0.639]
[1717216004947,2.64859,3775.6,3774.7,0.5537777]
[1717216005260,2.64887,3775.2,3774.8,2.3278]
[1717216005409,2.64887,3775.2,3775.1,0.639]
[1717216005614,5.64887,3775.2,3775.1,0.639]
[1717216024263,3.0,3775.2,3775.1,2.9404]
[1717216024491,2.64868,3775.5,3775.1,2.9404]
[1717216024680,3.0,3775.4,3775.1,2.3014]
[1717216025009,3.0,3775.4,3775.3,0.639]
[1717216034231,3.57277749,3775.4,3775.3,0.639]
[1717216037742,3.0,3775.4,3775.3,0.639]
[1717216043517,3.0,3775.4,3775.3,2.9936]
[1717216043719,3.0,3775.4,3775.3,3.29296]
[1717216045003,3.0,3775.9,3775.3,3.29296]
[1717216045209,3.0,3775.9,3775.8,0.639]
[1717216045558,3.57271558,3775.9,3775.8,0.639]
[1717216046459,3.0,3775.9,3775.8,0.639]
[1717216071251,3.5727082,3775.9,3775.8,0.639]
[1717216071616,3.57270804,3775.9,3775.8,0.639]
[1717216072541,0.57270804,3775.9,3775.8,0.639]
[1717216072742,2.64836,3776.0,3775.8,0.94866]
[1717216073900,3.0,3775.9,3775.8,0.94866]
[1717216079314,3.0,3775.9,3775.8,0.639]
[1717216088022,3.0,3775.9,3775.8,2.9225]
[1717216088326,3.0,3776.4,3775.8,2.9225]
[1717216088527,3.0,3776.4,3776.3,0.639]
[1717216091351,3.0,3776.4,3776.3,0.93125]
[1717216100389,3.0,3776.4,3776.3,0.639]
[1717216101751,2.648,3776.5,3776.3,0.639]
[1717216105417,3.0,3776.4,3776.3,0.639]
[1717216105635,3.0,3776.8,3776.3,0.639]
[1717216105934,3.0,3776.9,3776.7,0.639]
[1717216106139,3.0,3776.9,3776.8,0.639]
[1717216110894,2.64785,3776.7,3775.9,7.43]
[1717216111268,3.0,3776.6,3775.9,7.43]
[1717216111559,3.0,3776.6,3776.5,0.639]
[1717216113403,2.64795,3776.5,3775.9,7.43]
[1717216113706,2.64795,3776.5,3776.4,0.639]
[1717216114057,2.64795,3776.5,3775.5,2.2901]
[1717216114058,2.64825,3776.1,3775.5,2.2901]
[1717216114191,2.64825,3776.1,3776.0,0.639]
[1717216115011,2.64825,3776.1,3775.5,2.2901]
[1717216115213,2.64825,3776.1,3776.0,0.639]
[1717216118739,5.64825,3776.1,3776.0,0.639]
[1717216119444,7.96555,3776.1,3776.0,0.639]
[1717216123966,5.64825,3776.1,3776.0,0.639]
[1717216131397,5.64825,3776.1,3775.1,2.3228]
[1717216131700,2.2516,3776.3,3775.1,3.52418112]
[1717216131701,2.64841,3775.9,3775.1,3.52418112]
[1717216131891,2.64841,3775.9,3775.8,0.639]
[1717216132104,5.64841,3775.9,3775.8,0.639]
[1717216133263,7.90001,3775.9,3775.8,0.639]
[1717216133464,7.90001,3775.9,3775.1,3.52418112]
[1717216133700,7.90001,3775.9,3775.8,0.639]
[1717216142272,2.64887,3775.2,3774.7,2.2738]
[1717216142812,2.64887,3775.2,3775.1,0.639]
[1717216154299,2.64887,3775.2,3775.1,2.9128]
[1717216154514,2.64887,3775.2,3775.1,3.20408]
[1717216155619,2.64856,3775.7,3775.1,3.20408]
[1717216155934,3.0,3775.6,3775.2,2.2738]
[1717216156093,3.0,3775.6,3775.5,0.639]
[1717216160422,3.0,3776.0,3775.6,2.2738]
[1717216160606,3.0,3776.1,3775.9,0.639]
[1717216160950,3.0,3776.1,3776.0,0.639]
[1717216167237,3.0,3776.1,3776.0,0.937]
[1717216183651,3.0,3776.1,3776.0,0.639]
[1717216189939,3.0,3776.6,3776.0,0.639]
[1717216190139,3.0,3776.6,3776.5,0.639]
[1717216213576,2.64812,3776.3,3775.4,9.7162]
[1717216213711,2.4139,3776.2,3775.5,1.02712499]
[1717216213913,8.06206,3776.2,3775.5,1.02712499]
[1717216214104,8.06206,3776.2,3775.1,2.57748]
[1717216214105,5.06206,3776.2,3775.1,2.57748]
[1717216214284,2.64839,3775.9,3775.1,2.57748]
[1717216214479,2.64839,3775.9,3775.8,0.639]
[1717216214681,5.64839,3775.9,3775.8,0.639]
[1717216216022,8.06229,3775.9,3775.8,0.639]
[1717216217392,8.06229,3775.9,3774.8,2.2862]
[1717216217622,8.06229,3775.9,3775.8,0.639]
[1717216219861,8.06229,3775.9,3774.9,0.36672545]
[1717216219999,8.06229,3775.9,3775.8,0.639]
[1717216222297,5.64839,3775.9,3775.8,0.639]
[1717216222897,5.64839,3775.9,3774.9,2.75972545]
[1717216223096,2.64852,3775.7,3775.0,0.27597255]
[1717216223350,2.64852,3775.7,3775.6,0.639]
[1717216271168,2.64852,3775.7,3775.3,2.393]
[1717216271319,2.64852,3775.7,3775.6,0.639]
[1717216288349,7.43,3776.7,3775.6,0.639]
[1717216288350,2.6482,3776.2,3775.6,2.9094]
[1717216288563,2.6482,3776.2,3776.1,2.9094]
[1717216288853,2.64785,3776.7,3776.1,2.9094]
[1717216289080,2.64785,3776.7,3776.6,0.639]
[1717216289999,5.64785,3776.7,3776.6,0.639]
[1717216290200,2.64785,3776.7,3776.6,0.639]
[1717216290403,5.64785,3776.7,3776.6,0.639]
[1717216295705,5.64785,3776.7,3776.6,2.9094]
[1717216295924,5.64785,3776.7,3776.6,3.20034]
[1717216303960,5.64785,3776.7,3776.6,0.92994]
[1717216304166,5.64785,3776.7,3776.6,0.639]
[1717216316348,3.0,3776.7,3776.6,0.639]
[1717216316547,3.0,3777.1,3776.6,0.639]
[1717216316716,3.0,3777.1,3777.0,0.639]
[1717216317900,2.64709,3777.8,3777.0,0.639]
[1717216318101,2.6472,3777.6,3776.8,2.4165]
[1717216318456,2.6472,3777.6,3777.5,0.639]
[1717216319350,5.6472,3777.6,3777.5,0.639]
[1717216366364,2.64687,3778.1,3777.5,0.639]
[1717216366671,3.11046192,3779.6,3777.5,0.639]
[1717216366672,2.4056,3779.3,3778.1,2.3815]
[1717216366959,0.29869693,3779.2,3778.1,2.3815]
[1717216367162,2.94475693,3779.2,3779.1,0.639]
[1717216367456,4.98060993,3779.2,3779.1,0.639]
[1717216367658,2.94475693,3779.2,3779.1,0.639]
[1717216369365,5.94475693,3779.2,3779.1,0.639]
[1717216371328,2.64606,3779.2,3779.1,0.639]
[1717216372861,5.64606,3779.2,3779.1,0.639]
[1717216379674,5.64606,3779.2,3778.4,2.3815]
[1717216379825,5.64606,3779.2,3779.1,0.639]
[1717216383924,2.64574,3779.7,3779.1,3.1316]
[1717216384121,2.64574,3779.7,3779.5,0.639]
[1717216390476,2.64574,3779.7,3779.2,0.31316]
[1717216390680,2.64574,3779.7,3779.6,0.639]
[1717216390986,5.64574,3779.7,3779.6,0.639]
[1717216397148,5.64574,3779.7,3779.2,0.31316]
[1717216397355,5.64574,3779.7,3779.6,0.639]
[1717216400063,8.00624,3779.7,3779.6,0.639]
[1717216400370,5.64574,3779.7,3779.6,0.639]
[1717216420460,2.64574,3779.7,3779.6,0.639]
[1717216420659,2.64542,3780.2,3779.6,0.9413]
[1717216420989,2.64542,3780.2,3780.1,0.639]
[1717216422394,5.64542,3780.2,3780.1,0.639]
[1717216429044,5.64542,3780.2,3779.0,7.43]
[1717216429045,2.6458,3779.6,3779.3,2.3416]
[1717216429245,2.6458,3779.6,3779.4,0.23416]
[1717216429435,2.6458,3779.6,3779.5,0.639]
[1717216430771,2.6458,3779.6,3779.0,7.43]
[1717216430942,2.6458,3779.6,3779.5,0.639]
[1717216431585,2.6458,3779.6,3779.0,7.43]
[1717216431871,2.6458,3779.6,3779.5,0.639]
[1717216436223,2.6458,3779.6,3778.9,2.3416]
[1717216436571,2.6458,3779.6,3779.5,0.639]
[1717216445688,2.64612,3779.2,3779.0,0.23416]
[1717216445844,2.64612,3779.2,3779.1,0.639]
[1717216448896,2.64576,3779.7,3779.2,2.371]
[1717216449076,2.64576,3779.7,3779.6,0.639]
[1717216453656,2.64576,3779.7,3779.3,0.324416]
[1717216453876,2.64576,3779.7,3779.6,0.639]
[1717216456847,2.64576,3779.7,3778.6,2.371]